fUSD/lending_fUSD_20260510
["ID","MTS","AMOUNT","RATE_DAILY","PERIOD"]
[421977191,1778398235000,-356.3844,0.000427,120]
[421977207,1778398235000,-151.75,0.00042845,120]
[421977194,1778398235000,-1255.85,0.000427,120]
[421977205,1778398235000,-194.0,0.000428,120]
[421977204,1778398235000,-3954.36837981,0.000428,120]
[421977206,1778398235000,-19208.01165065,0.000428,30]
[421977193,1778398235000,-1255.85,0.000427,120]
[421977203,1778398235000,-749.37161207,0.000428,120]
[421977202,1778398235000,-1000.0,0.000428,120]
[421977201,1778398235000,-150.96,0.00042792,120]
[421977198,1778398235000,-281.38800915,0.0004274,120]
[421977200,1778398235000,-4897.30361701,0.00042748,31]
[421977195,1778398235000,-401.9067,0.000427,90]
[421977197,1778398235000,-1561.0,0.0004274,120]
[421977196,1778398235000,-4217.92721539,0.00042739,30]
[421977192,1778398235000,-1255.4232,0.000427,90]
[421977199,1778398235000,-151.75,0.00042745,120]
[421977219,1778398236000,-1000.0,0.00042999,120]
[421977221,1778398236000,-1004.85,0.00043,120]
[421977220,1778398236000,-500.0,0.00043,45]
[421977216,1778398236000,-627.7409385,0.0004299,120]
[421977218,1778398236000,-150.96,0.00042992,120]
[421977215,1778398236000,-151.75,0.00042945,120]
[421977223,1778398236000,-342.88720851,0.00043,120]
[421977214,1778398236000,-1701.92922146,0.00042903,120]
[421977212,1778398236000,-443543.4719725,0.000429,90]
[421977210,1778398236000,-150.96,0.00042892,120]
[421977211,1778398236000,-1000.0,0.000429,120]
[421977209,1778398236000,-225.33594873,0.00042888,120]
[421977208,1778398236000,-194.13657373,0.00042887,30]
[421977213,1778398236000,-2500.0,0.000429,120]
[421977222,1778398236000,-2285.42377052,0.00043,120]
[421977217,1778398236000,-164.44173931,0.0004299,60]
[421977225,1778398236000,-299.6000666,0.00043,120]
[421977224,1778398236000,-236.1469094,0.00043,120]
[421977237,1778398236000,-937.0,0.00043,120]
[421977236,1778398236000,-937.0,0.00043,120]
[421977235,1778398236000,-4649.659107,0.00043,120]
[421977234,1778398236000,-50000.0,0.00043,60]
[421977232,1778398236000,-139785.26119542,0.00043,30]
[421977233,1778398236000,-17000.0,0.00043,120]
[421977238,1778398236000,-2670.72022465,0.00043,120]
[421977230,1778398236000,-2863.98570868,0.00043,120]
[421977229,1778398236000,-6558.0,0.00043,120]
[421977228,1778398236000,-2000.0,0.00043,120]
[421977239,1778398236000,-2044.062,0.00043,90]
[421977226,1778398236000,-175.46492401,0.00043,30]
[421977227,1778398236000,-1914.11787509,0.00043,120]
[421977231,1778398236000,-5000.0,0.00043,120]
[421977251,1778398237000,-232.72210001,0.00043,120]
[421977249,1778398237000,-1058.11,0.00043,120]
[421977250,1778398237000,-704.02401155,0.00043,120]
[421977248,1778398237000,-50000.0,0.00043,120]
[421977247,1778398237000,-10000.0,0.00043,120]
[421977246,1778398237000,-1592.8772535,0.00043,30]
[421977244,1778398237000,-845.30855969,0.00043,120]
[421977242,1778398237000,-1143.5,0.00043,120]
[421977243,1778398237000,-5000.0,0.00043,44]
[421977241,1778398237000,-2044.06,0.00043,90]
[421977240,1778398237000,-2044.062,0.00043,90]
[421977253,1778398237000,-282.45520015,0.00043,120]
[421977245,1778398237000,-164.08370863,0.00043,120]
[421977252,1778398237000,-165.30362608,0.00043,120]
[421977254,1778398237000,-1458.59,0.00043,120]
[421977255,1778398237000,-5984.3,0.00043,120]
[421977268,1778398237000,-194.0,0.000433,120]
[421977266,1778398237000,-150.96,0.00043292,120]
[421977269,1778398237000,-522.338599,0.000433,120]
[421977265,1778398237000,-1561.0,0.00043288,120]
[421977264,1778398237000,-2500.0,0.000432,120]
[421977263,1778398237000,-150.96,0.00043192,120]
[421977270,1778398237000,-59700.0,0.000433,32]
[421977260,1778398237000,-150.96,0.00043092,120]
[421977261,1778398237000,-1211.50260558,0.000431,120]
[421977259,1778398237000,-153.93,0.0004308,120]
[421977258,1778398237000,-250.0,0.00043068,120]
[421977257,1778398237000,-151.75,0.00043045,120]
[421977256,1778398237000,-1561.0,0.00043014,120]
[421977262,1778398237000,-151.75,0.00043145,120]
[421977294,1778398238000,-2000.0,0.000435,120]
[421977293,1778398238000,-200.0,0.00043499,120]
[421977290,1778398238000,-150.96,0.00043492,120]
[421977289,1778398238000,-153.93,0.0004348,120]
[421977291,1778398238000,-11422.88042668,0.00043494,120]
[421977286,1778398238000,-39394.383782,0.0004342,120]
[421977287,1778398238000,-3851.57995643,0.0004344,120]
[421977279,1778398238000,-11422.88042668,0.00043397,120]
[421977285,1778398238000,-303.47396642,0.000434,120]
[421977284,1778398238000,-869.38,0.000434,120]
[421977274,1778398238000,-282.69,0.00043394,30]
[421977271,1778398238000,-442.26300947,0.0004339,30]
[421977292,1778398238000,-1000.0,0.00043499,120]
[421977272,1778398238000,-150.96,0.00043392,120]
[421977288,1778398238000,-11422.88042668,0.00043445,120]
[421977298,1778398238000,-2000.0,0.000435,120]
[421977324,1778398238000,-547274.67485317,0.000436,120]
[421977296,1778398238000,-500.0,0.000435,45]
[421977295,1778398238000,-50000.0,0.000435,32]
[421977325,1778398238000,-150.0,0.000436,30]
[421977318,1778398238000,-150.96,0.00043592,120]
[421977322,1778398238000,-2951969.86411728,0.000436,120]
[421977323,1778398238000,-101086.52858328,0.000436,30]
[421977317,1778398238000,-11422.88042668,0.00043591,120]
[421977308,1778398238000,-11422.88042668,0.00043543,120]
[421977313,1778398238000,-1561.0,0.00043562,120]
[421977304,1778398238000,-16109.0,0.00043519,120]
[421977303,1778398238000,-420631.28458082,0.000435,120]
[421977300,1778398238000,-50000.0,0.000435,120]
[421977301,1778398238000,-500.0,0.000435,120]
[421977299,1778398238000,-229064.08639876,0.000435,60]
[421977297,1778398238000,-429.67280464,0.000435,120]
[421977302,1778398238000,-2500.0,0.000435,120]
[421977335,1778398239000,-151.75,0.00043634,120]
[421977338,1778398239000,-227.0,0.00043644,120]
[421977337,1778398239000,-152.0,0.00043644,120]
[421977339,1778398239000,-550.0,0.00043644,120]
[421977336,1778398239000,-11422.88042668,0.0004364,120]
[421977333,1778398239000,-3821.89863393,0.00043616,30]
[421977326,1778398239000,-1539.22206143,0.000436,30]
[421977331,1778398239000,-153.973974,0.000436,120]
[421977332,1778398239000,-151.0,0.000436,120]
[421977328,1778398239000,-3565.63571078,0.000436,30]
[421977329,1778398239000,-150.0,0.000436,30]
[421977330,1778398239000,-771.19130825,0.000436,30]
[421977327,1778398239000,-150.0,0.000436,30]
[421977334,1778398239000,-3821.89863393,0.00043616,30]
[421977341,1778398239000,-151.19,0.00043692,120]
[421977340,1778398239000,-11422.88042668,0.00043689,120]
[421977343,1778398239000,-1000.0,0.000437,120]
[421977367,1778398239000,-11422.88042668,0.00043835,120]
[421977362,1778398239000,-150.0,0.00043801,120]
[421977363,1778398239000,-151.75,0.00043834,120]
[421977360,1778398239000,-155.0,0.000438,120]
[421977361,1778398239000,-2500.0,0.000438,120]
[421977359,1778398239000,-365.76841625,0.000438,90]
[421977342,1778398239000,-476.42242805,0.000437,120]
[421977347,1778398239000,-11422.88042668,0.00043786,120]
[421977350,1778398239000,-57000.0,0.000438,31]
[421977348,1778398239000,-6040.76654638,0.000438,120]
[421977346,1778398239000,-11422.88042668,0.00043738,120]
[421977344,1778398239000,-151.75,0.00043734,120]
[421977345,1778398239000,-150.0,0.00043735,120]
[421977355,1778398239000,-543.47176523,0.000438,30]
[421977382,1778398240000,-357.0067,0.000439,120]
[421977380,1778398240000,-26300.0,0.000439,120]
[421977381,1778398240000,-194.0,0.000439,120]
[421977378,1778398240000,-150000.0,0.000439,120]
[421977377,1778398240000,-153.93,0.0004388,120]
[421977379,1778398240000,-75622.96280826,0.000439,120]
[421977376,1778398240000,-353.98569327,0.00043836,60]
[421977374,1778398240000,-201.06,0.00043836,120]
[421977373,1778398240000,-200.0,0.00043836,120]
[421977372,1778398240000,-668.8,0.00043836,120]
[421977371,1778398240000,-1561.0,0.00043836,120]
[421977383,1778398240000,-150.0,0.00043903,120]
[421977375,1778398240000,-201.06,0.00043836,120]
[421977384,1778398240000,-151.75,0.00043934,120]
[421977385,1778398240000,-1000.0,0.00043999,120]
[421977387,1778398240000,-501.19003207,0.00044,60]
[421977400,1778398240000,-1500.0,0.00044,120]
[421977398,1778398240000,-1000.0,0.00044,45]
[421977399,1778398240000,-389.87798127,0.00044,120]
[421977397,1778398240000,-169.73050793,0.00044,120]
[421977395,1778398240000,-298105.19206837,0.00044,120]
[421977393,1778398240000,-3098.0,0.00044,61]
[421977396,1778398240000,-2500.0,0.00044,30]
[421977391,1778398240000,-10000.0,0.00044,120]
[421977392,1778398240000,-50000.0,0.00044,30]
[421977390,1778398240000,-11770.18795351,0.00044,120]
[421977388,1778398240000,-50000.0,0.00044,120]
[421977389,1778398240000,-6346.15382991,0.00044,120]
[421977386,1778398240000,-19898.08657364,0.00044,120]
[421977394,1778398240000,-500.0,0.00044,120]
[421977408,1778398241000,-552.11806638,0.00044,120]
[421977413,1778398241000,-570.807798,0.00044,57]
[421977412,1778398241000,-50000.0,0.00044,120]
[421977411,1778398241000,-18453.92600847,0.00044,120]
[421977410,1778398241000,-1000.0,0.00044,120]
[421977409,1778398241000,-306.64544884,0.00044,120]
[421977401,1778398241000,-6558.0,0.00044,120]
[421977407,1778398241000,-643.92400754,0.00044,120]
[421977404,1778398241000,-937.0,0.00044,120]
[421977405,1778398241000,-7439.0,0.00044,61]
[421977403,1778398241000,-937.0,0.00044,120]
[421977402,1778398241000,-26836.88776151,0.00044,120]
[421977415,1778398241000,-372.74825271,0.000441,120]
[421977406,1778398241000,-216.83295232,0.00044,120]
[421977414,1778398241000,-151.75,0.00044034,120]
[421977429,1778398241000,-909.21952167,0.00044346,120]
[421977417,1778398241000,-1119.0,0.000441,30]
[421977416,1778398241000,-2500.0,0.000441,120]
[421977430,1778398241000,-1561.0,0.00044384,120]
[421977431,1778398241000,-194.0,0.000444,120]
[421977427,1778398241000,-151.75,0.00044334,120]
[421977428,1778398241000,-909.21952167,0.00044334,120]
[421977425,1778398241000,-153.93,0.0004428,120]
[421977426,1778398241000,-172.36,0.000443,120]
[421977424,1778398241000,-151.76,0.00044247,30]
[421977421,1778398241000,-1420.218,0.000442,90]
[421977420,1778398241000,-1111.31316277,0.00044157,120]
[421977422,1778398241000,-3061.58663599,0.00044223,120]
[421977419,1778398241000,-151.75,0.00044134,120]
[421977418,1778398241000,-1561.0,0.0004411,120]
[421977423,1778398241000,-151.75,0.00044234,120]
[421977440,1778398242000,-50000.0,0.000445,120]
[421977447,1778398242000,-550.0,0.00044644,120]
[421977443,1778398242000,-151.75,0.00044534,120]
[421977444,1778398242000,-151.75,0.00044634,120]
[421977442,1778398242000,-20000.00000099,0.00044525,120]
[421977439,1778398242000,-2998.12702855,0.000445,120]
[421977445,1778398242000,-152.0,0.00044644,120]
[421977438,1778398242000,-1370.86333903,0.000445,120]
[421977435,1778398242000,-292.94676255,0.000445,120]
[421977437,1778398242000,-24000.0,0.000445,32]
[421977436,1778398242000,-1531.94268598,0.000445,120]
[421977433,1778398242000,-151.75,0.00044434,120]
[421977434,1778398242000,-1111.6752381,0.0004444,120]
[421977441,1778398242000,-500.0,0.000445,120]
[421977446,1778398242000,-227.0,0.00044644,120]
[421977432,1778398242000,-2500.0,0.000444,120]
[421977449,1778398242000,-153.93,0.0004468,120]
[421977448,1778398242000,-772.41,0.00044658,120]
[421977466,1778398242000,-581.0,0.00045,120]
[421977465,1778398242000,-300.0,0.00045,90]
[421977462,1778398242000,-151.75,0.00044934,120]
[421977464,1778398242000,-200.0,0.00044999,120]
[421977463,1778398242000,-1000.0,0.00044999,120]
[421977460,1778398242000,-391.69042594,0.000449,120]
[421977468,1778398242000,-1000.0,0.00045,120]
[421977455,1778398242000,-5000.0,0.000449,120]
[421977451,1778398242000,-151.75,0.00044734,120]
[421977452,1778398242000,-1000.0,0.00044799,30]
[421977453,1778398242000,-151.75,0.00044834,120]
[421977454,1778398242000,-193.37092768,0.0004489,120]
[421977450,1778398242000,-2500.0,0.000447,120]
[421977456,1778398242000,-7337.96154678,0.000449,30]
[421977494,1778398243000,-536.82432471,0.00045,120]
[421977492,1778398243000,-208.74840641,0.00045,30]
[421977493,1778398243000,-591.3917496,0.00045,120]
[421977491,1778398243000,-9739.40255001,0.00045,120]
[421977489,1778398243000,-12016.0,0.00045,120]
[421977490,1778398243000,-584.56711769,0.00045,120]
[421977481,1778398243000,-274.5834522,0.00045,120]
[421977486,1778398243000,-500.0,0.00045,120]
[421977478,1778398243000,-50000.0,0.00045,30]
[421977476,1778398243000,-100000.0,0.00045,30]
[421977472,1778398243000,-329377.00382436,0.00045,120]
[421977495,1778398243000,-1000.0,0.00045,46]
[421977488,1778398243000,-500.0,0.00045,120]
[421977496,1778398243000,-2923.0,0.00045,120]
[421977497,1778398243000,-150.0,0.00045,120]
[421977498,1778398243000,-163.5,0.00045,85]
[421977511,1778398243000,-381370.12204707,0.00045,30]
[421977510,1778398243000,-74795.12839319,0.00045,30]
[421977506,1778398243000,-641.6,0.00045,120]
[421977509,1778398243000,-136963.24252777,0.00045,30]
[421977508,1778398243000,-759.13779113,0.00045,120]
[421977505,1778398243000,-6648.0,0.00045,90]
[421977512,1778398243000,-24534.75407238,0.00045,120]
[421977503,1778398243000,-10335.73047683,0.00045,120]
[421977500,1778398243000,-157.87813259,0.00045,120]
[421977501,1778398243000,-997.84735414,0.00045,120]
[421977502,1778398243000,-478.83936212,0.00045,80]
[421977499,1778398243000,-188.72636723,0.00045,120]
[421977504,1778398243000,-63509.12260998,0.00045,120]
[421977526,1778398244000,-284.81306359,0.00045,120]
[421977524,1778398244000,-250.508116,0.00045,120]
[421977522,1778398244000,-2000.0,0.00045,30]
[421977521,1778398244000,-150.0,0.00045,120]
[421977523,1778398244000,-194.0,0.00045,120]
[421977517,1778398244000,-4493.73676734,0.00045,120]
[421977514,1778398244000,-6558.0,0.00045,120]
[421977518,1778398244000,-937.0,0.00045,120]
[421977516,1778398244000,-11281.0,0.00045,120]
[421977515,1778398244000,-261220.0,0.00045,60]
[421977513,1778398244000,-102552.95489521,0.00045,120]
[421977525,1778398244000,-751816.54691324,0.00045,120]
[421977520,1778398244000,-937.0,0.00045,120]
[421977529,1778398244000,-6864.92260373,0.00045,120]
[421977542,1778398244000,-883.25,0.000451,120]
[421977528,1778398244000,-1005.06309616,0.00045,120]
[421977527,1778398244000,-351.96734609,0.00045,120]
[421977543,1778398244000,-883.25,0.000451,90]
[421977541,1778398244000,-6164.09781497,0.000451,120]
[421977540,1778398244000,-153.93,0.0004508,120]
[421977539,1778398244000,-151.75,0.00045034,120]
[421977537,1778398244000,-221707.74089058,0.00045,120]
[421977538,1778398244000,-2500.0,0.00045,120]
[421977533,1778398244000,-3169.99354151,0.00045,30]
[421977536,1778398244000,-2974.3591046,0.00045,120]
[421977534,1778398244000,-50000.0,0.00045,120]
[421977532,1778398244000,-343.16874341,0.00045,30]
[421977531,1778398244000,-11730.65418743,0.00045,120]
[421977530,1778398244000,-1735.60346323,0.00045,120]
[421977535,1778398244000,-1404.73476563,0.00045,120]
[421977552,1778398245000,-683.59,0.00045205,30]
[421977557,1778398245000,-151.75,0.00045334,120]
[421977556,1778398245000,-2500.0,0.000453,120]
[421977553,1778398245000,-3136.74,0.00045205,120]
[421977554,1778398245000,-171.0,0.00045205,30]
[421977551,1778398245000,-443.51,0.00045205,120]
[421977555,1778398245000,-151.75,0.00045234,120]
[421977550,1778398245000,-491.65,0.00045205,120]
[421977549,1778398245000,-2041.83,0.00045205,120]
[421977545,1778398245000,-151.75,0.00045134,120]
[421977546,1778398245000,-1412.19414599,0.0004517,61]
[421977544,1778398245000,-155.0,0.000451,120]
[421977548,1778398245000,-639.34,0.00045205,120]
[421977559,1778398245000,-7624.782326,0.00045421,120]
[421977547,1778398245000,-160.6,0.00045178,30]
[421977560,1778398245000,-151.75,0.00045434,120]
[421977574,1778398245000,-3519.58238127,0.00045556,120]
[421977571,1778398245000,-150.0,0.00045505,120]
[421977572,1778398245000,-151.75,0.00045534,120]
[421977570,1778398245000,-50000.0,0.000455,120]
[421977568,1778398245000,-5292.22786773,0.000455,120]
[421977569,1778398245000,-194.0,0.000455,120]
[421977573,1778398245000,-365512.18329713,0.00045556,120]
[421977566,1778398245000,-2466.02,0.000455,120]
[421977567,1778398245000,-37465.7803761,0.000455,120]
[421977562,1778398245000,-153.93,0.0004548,120]
[421977561,1778398245000,-486.454706,0.00045471,120]
[421977558,1778398245000,-26362.17777518,0.000454,30]
[421977564,1778398245000,-2466.026,0.000455,120]
[421977565,1778398245000,-2466.026,0.000455,120]
[421977563,1778398245000,-100000.0,0.000455,31]
[421977589,1778398246000,-1797.0766823,0.0004575,120]
[421977575,1778398246000,-1458.59,0.0004558,120]
[421977576,1778398246000,-5984.3,0.0004558,120]
[421977578,1778398246000,-2500.0,0.000456,120]
[421977579,1778398246000,-151.75,0.00045634,120]
[421977580,1778398246000,-152.0,0.00045644,120]
[421977582,1778398246000,-550.0,0.00045644,120]
[421977581,1778398246000,-227.0,0.00045644,120]
[421977583,1778398246000,-150.0,0.00045647,120]
[421977584,1778398246000,-68199.1183736,0.000457,120]
[421977585,1778398246000,-151.75,0.00045734,120]
[421977586,1778398246000,-1925.79136498,0.0004575,120]
[421977577,1778398246000,-16656.73187798,0.000456,35]
[421977587,1778398246000,-1709.50169263,0.0004575,120]
[421977591,1778398246000,-50000.0,0.0004575,120]
[421977588,1778398246000,-2157.49445086,0.0004575,120]
[421977603,1778398246000,-1000.0,0.00045999,120]
[421977604,1778398246000,-100000.0,0.00046,32]
[421977602,1778398246000,-150.0,0.00045921,120]
[421977600,1778398246000,-2608.16,0.000459,120]
[421977597,1778398246000,-153.93,0.0004588,120]
[421977601,1778398246000,-2500.0,0.000459,120]
[421977595,1778398246000,-4657.30438136,0.0004588,120]
[421977594,1778398246000,-2095.0,0.0004584,120]
[421977593,1778398246000,-1846.15141902,0.0004575,120]
[421977590,1778398246000,-2112.65127341,0.0004575,120]
[421977592,1778398246000,-3898.40978038,0.0004575,120]
[421977598,1778398246000,-109581.64614168,0.00045889,120]
[421977615,1778398247000,-227.42106002,0.00046,30]
[421977618,1778398247000,-144451.44624628,0.00046,120]
[421977617,1778398247000,-1000.0,0.00046,30]
[421977616,1778398247000,-1768.90572117,0.00046,120]
[421977613,1778398247000,-625.31657241,0.00046,120]
[421977614,1778398247000,-19790.5576863,0.00046,120]
[421977605,1778398247000,-208.60396527,0.00046,30]
[421977611,1778398247000,-1000.0,0.00046,47]
[421977610,1778398247000,-9619.41817417,0.00046,120]
[421977609,1778398247000,-10000.0,0.00046,120]
[421977607,1778398247000,-10000.0,0.00046,120]
[421977606,1778398247000,-10000.0,0.00046,120]
[421977612,1778398247000,-171.85812513,0.00046,120]
[421977619,1778398247000,-376.15635937,0.00046,120]
[421977621,1778398247000,-208.0,0.00046,90]
[421977622,1778398247000,-23451.38774281,0.00046,120]
[421977634,1778398247000,-10496.0,0.00046,120]
[421977632,1778398247000,-937.0,0.00046,120]
[421977633,1778398247000,-927.0,0.00046,120]
[421977630,1778398247000,-938.0,0.00046,120]
[421977631,1778398247000,-44769.09647799,0.00046,120]
[421977628,1778398247000,-937.0,0.00046,120]
[421977620,1778398247000,-150.0,0.00046,120]
[421977629,1778398247000,-937.0,0.00046,120]
[421977626,1778398247000,-5215.01673464,0.00046,120]
[421977625,1778398247000,-17863.76668149,0.00046,120]
[421977624,1778398247000,-212859.4015535,0.00046,120]
[421977623,1778398247000,-4486.49281515,0.00046,60]
[421977627,1778398247000,-6558.0,0.00046,120]
[421977646,1778398248000,-5504.99904831,0.00046093,120]
[421977647,1778398248000,-216.73791787,0.00046093,120]
[421977644,1778398248000,-99248.80894096,0.00046048,120]
[421977645,1778398248000,-636.89251295,0.00046065,120]
[421977643,1778398248000,-1029.63362068,0.00046039,120]
[421977642,1778398248000,-410.0,0.00046,30]
[421977639,1778398248000,-1000.0,0.00046,120]
[421977641,1778398248000,-929.2966846,0.00046,120]
[421977638,1778398248000,-7791.02497988,0.00046,120]
[421977637,1778398248000,-50000.0,0.00046,120]
[421977636,1778398248000,-1000.0,0.00046,120]
[421977648,1778398248000,-174.81952411,0.00046099,120]
[421977640,1778398248000,-8266.6427575,0.00046,120]
[421977635,1778398248000,-224.55482459,0.00046,120]
[421977649,1778398248000,-194.0,0.000461,120]
[421977651,1778398248000,-191.51563859,0.00046115,120]
[421977650,1778398248000,-151.49202793,0.00046106,120]
[421977662,1778398248000,-536.55652372,0.0004623,120]
[421977660,1778398248000,-5028.49105202,0.00046224,120]
[421977661,1778398248000,-218.25485952,0.00046224,120]
[421977659,1778398248000,-2500.0,0.000462,120]
[421977657,1778398248000,-1043.3388134,0.00046195,120]
[421977663,1778398248000,-968.175423,0.00046254,120]
[421977654,1778398248000,-5059.02267393,0.00046156,120]
[421977656,1778398248000,-5140.55757209,0.00046173,120]
[421977655,1778398248000,-153.54149194,0.00046156,120]
[421977653,1778398248000,-953.83758201,0.0004612,120]
[421977652,1778398248000,-163.85826587,0.00046117,120]
[421977658,1778398248000,-163.92705579,0.000462,30]
[421977672,1778398249000,-152.83987916,0.00046337,120]
[421977673,1778398249000,-176.50604848,0.00046352,120]
[421977671,1778398249000,-6902.71331151,0.00046333,120]
[421977670,1778398249000,-463.86140813,0.00046309,120]
[421977674,1778398249000,-3342.112,0.00046353,120]
[421977668,1778398249000,-12731.6857,0.0004628,120]
[421977667,1778398249000,-229.5543086,0.00046265,120]
[421977666,1778398249000,-159.14429423,0.00046264,120]
[421977664,1778398249000,-1406.27386533,0.00046256,120]
[421977665,1778398249000,-456.8812501,0.00046257,120]
[421977669,1778398249000,-402.53079501,0.00046301,30]
[421977677,1778398249000,-35411.35741982,0.000464,120]
[421977682,1778398249000,-1500.0,0.000465,120]
[421977675,1778398249000,-501.73306082,0.0004639,120]
[421977678,1778398249000,-155.0,0.000464,120]
[421977680,1778398249000,-437.66009894,0.00046495,90]
[421977679,1778398249000,-543.42,0.00046434,120]
[421977681,1778398249000,-261.065085,0.00046499,120]
[421977683,1778398249000,-100000.0,0.000465,33]
[421977686,1778398249000,-2500.0,0.000465,120]
[421977684,1778398249000,-866.59,0.000465,120]
[421977685,1778398249000,-691.82066186,0.000465,120]
[421977687,1778398249000,-150.0,0.00046574,30]
[421977689,1778398249000,-1327445.80632779,0.00046575,30]
[421977688,1778398249000,-4276.77521998,0.00046575,60]
[421977676,1778398249000,-100000.0,0.000464,120]
[421977690,1778398250000,-1200.0,0.00010499,2]
[421977692,1778398250000,-1329.01437532,0.000106,2]
[421977691,1778398250000,-129.01437532,0.000106,2]
[421977708,1778398345000,-180236.20689744,0.000106,2]
[421977693,1778398345000,-1216.57072602,0.000106,2]
[421977695,1778398345000,-947.66880428,0.000106,2]
[421977697,1778398345000,-15991.79150603,0.000106,2]
[421977694,1778398345000,-8073.70803725,0.000106,2]
[421977698,1778398345000,-385.00293256,0.000106,2]
[421977699,1778398345000,-303.8818997,0.000106,2]
[421977705,1778398345000,-2649.0,0.000106,2]
[421977706,1778398345000,-413.48160874,0.000106,2]
[421977700,1778398345000,-1049.24108504,0.000106,2]
[421977702,1778398345000,-14415.53178793,0.000106,2]
[421977704,1778398345000,-584.0,0.000106,2]
[421977703,1778398345000,-56695.61831465,0.000106,2]
[421977696,1778398345000,-3200.41564869,0.000106,2]
[421977701,1778398345000,-700.37599953,0.000106,2]
[421977719,1778398345000,-5903.718551,0.000106,2]
[421977707,1778398345000,-7283.02287851,0.000106,2]
[421977718,1778398345000,-704.261107,0.000106,2]
[421977717,1778398345000,-37876.5,0.000106,2]
[421977716,1778398345000,-313.45445233,0.000106,2]
[421977714,1778398345000,-2490.57914543,0.000106,2]
[421977720,1778398345000,-48829.746,0.000106,2]
[421977712,1778398345000,-417.51182976,0.000106,2]
[421977713,1778398345000,-971.72153587,0.000106,2]
[421977710,1778398345000,-1512.86999631,0.000106,2]
[421977711,1778398345000,-1711.23017621,0.000106,2]
[421977709,1778398345000,-6264.70889579,0.000106,2]
[421977715,1778398345000,-1149.99016759,0.000106,2]
[421977748,1778398346000,-450.81887613,0.000106,2]
[421977746,1778398346000,-5155.31062132,0.000106,2]
[421977745,1778398346000,-20246.99082024,0.000106,2]
[421977744,1778398346000,-4429.0,0.000106,2]
[421977750,1778398346000,-1753.974021,0.000106,2]
[421977751,1778398346000,-10999.3151,0.000106,2]
[421977753,1778398346000,-649.29216344,0.000106,2]
[421977747,1778398346000,-3114.16252253,0.000106,2]
[421977757,1778398346000,-2619.9222051,0.000106,2]
[421977749,1778398346000,-2565.98624479,0.000106,2]
[421977754,1778398346000,-5268.0705926,0.000106,2]
[421977758,1778398346000,-636154.61306639,0.000106,2]
[421977741,1778398346000,-60846.20989375,0.000106,2]
[421977755,1778398346000,-14841.65212631,0.000106,2]
[421977759,1778398346000,-175.47,0.00010631,2]
[421977772,1778398346000,-150.0,0.000108,2]
[421977761,1778398346000,-94966.6429148,0.000107,2]
[421977752,1778398346000,-5468.80132686,0.000106,2]
[421977737,1778398346000,-630.80950028,0.000106,2]
[421977735,1778398346000,-846.22880393,0.000106,2]
[421977736,1778398346000,-272.24010028,0.000106,2]
[421977770,1778398346000,-173.81355393,0.000108,2]
[421977721,1778398346000,-8355.461751,0.000106,2]
[421977722,1778398346000,-36008.590824,0.000106,2]
[421977723,1778398346000,-21422.67237873,0.000106,2]
[421977724,1778398346000,-273.05334531,0.000106,2]
[421977725,1778398346000,-39813.68421793,0.000106,2]
[421977727,1778398346000,-3526.75,0.000106,2]
[421977726,1778398346000,-1450.80311392,0.000106,2]
[421977728,1778398346000,-3957.0,0.000106,2]
[421977729,1778398346000,-19427.47287327,0.000106,2]